[Event "Grand Prix Romania 1st Stage 2024"]
[Site "Bucuresti"]
[Date "2024.03.24"]
[Round "5.29"]
[White "Economescu, Valentin"]
[Black "Vedmediuc, Serghei"]
[Result "0-1"]
[ECO "B21"]
[WhiteElo "2147"]
[BlackElo "2452"]
[Annotator "RC"]
[PlyCount "50"]
[EventDate "2024.03.20"]
[EventType "swiss"]
[EventCountry "ROU"]
[SourceTitle "playchess.com"]
[Source "ChessBase"]
[SourceQuality "1"]
[TimeControl "900+5"]

1. e4 {[%emt 0:00:04]} c5 {[%emt 0:00:03]} 2. Nf3 {[%emt 0:00:03]} Nc6 {[%emt 0:00:05]} 3. d4 {[%emt 0:00:13]} cxd4 {[%emt 0:00:03]} 4. c3 {[%emt 0:00:07]} dxc3 {[%emt 0:00:17]} 5. Nxc3 {[%emt 0:00:03]} e6 {[%emt 0:00:02]} 6. Bc4 {[%emt 0:00:22]} a6 {[%emt 0:00:02]} 7. O-O {[%emt 0:00:06]} b5 {[%emt 0:00:01]} 8. Bb3 {[%emt 0:00:12]} Na5 {[%emt 0:00:51]} 9. Bc2 {[%emt 0:00:40]} Bb7 {[%emt 0:00:01]} 10. Qe2 {[%emt 0:00:08]} Rc8 {[%emt 0:00:29]} 11. Re1 {[%emt 0:05:14]} Nf6 {[%emt 0:01:03]} 12. Bg5 {[%emt 0:00:51]} Be7 {[%emt 0:00:05]} 13. e5 {[%emt 0:00:22]} Nd5 {[%emt 0:00:25]} 14. Ne4 {[%emt 0:00:13]} O-O {[%emt 0:02:24]} 15. Rac1 {[%emt 0:02:44]} Nc4 {[%emt 0:03:54]} 16. Bxe7 {[%emt 0:02:15]} Qxe7 {[%emt 0:00:27]} 17. b3 {[%emt 0:01:24]} Nf4 {[%emt 0:01:31]} 18. Qd1 {[%emt 0:00:00]} Na3 {[%emt 0:00:03]} 19. Qd2 {[%emt 0:00:36]} Nxc2 {[%emt 0:00:18]} 20. Qxf4 {[%emt 0:00:07]} Nxe1 {[%emt 0:00:30]} 21. Nf6+ {[%emt 0:00:13]} Qxf6 {[%emt 0:01:06]} 22. exf6 {[%emt 0:00:07]} Nd3 {[%emt 0:00:01]} 23. Qc7 {[%emt 0:00:49]} Rxc7 {[%emt 0:00:05]} 24. Rxc7 {[%emt 0:00:01]} Bxf3 {[%emt 0:00:06]} 25. gxf3 {[%emt 0:00:02]} gxf6 {[%emt 0:03:18]} 0-1

[Event "Grand Prix Romania 1st Stage 2024"]
[Site "Bucuresti"]
[Date "2024.03.24"]
[Round "5.30"]
[White "Nevednichy, Vladislav"]
[Black "Prelipcean, Eric-Matei"]
[Result "1-0"]
[ECO "A34"]
[WhiteElo "2445"]
[BlackElo "2103"]
[Annotator "TA"]
[PlyCount "83"]
[EventDate "2024.03.20"]
[EventType "swiss"]
[EventCountry "ROU"]
[SourceTitle "playchess.com"]
[Source "ChessBase"]
[SourceQuality "1"]
[TimeControl "900+5"]

{[%evp 15,83,-15,52,51,60,16,25,20,55,37,59,57,73,9,23,22,31,17,162,62,54,43,60,8,73,24,254,68,86,97,453,77,94,92,65,12,8,8,76,33,43,51,57,52,44,29,23,29,33,5,25,32,39,39,96,91,138,147,147,144,228,227,306,318,442,179,741,378,553,497]} 1. c4 {[%emt 0:00:02]} Nf6 {[%emt 0:00:06]} 2. Nc3 {[%emt 0:00:03]} c5 {[%emt 0:00:07]} 3. g3 {[%emt 0:00:05]} g6 {[%emt 0:00:06]} 4. Bg2 {[%emt 0:00:02]} Bg7 {[%emt 0:00:04]} 5. Nf3 {[%emt 0:00:02]} O-O {[%emt 0:00:08]} 6. O-O {[%emt 0:00:03]} d5 {[%emt 0:00:13]} 7. cxd5 {[%emt 0:00:20]} Nxd5 {[%emt 0:00:03]} 8. Qb3 {[%emt 0:00:53]} Nxc3 {[%emt 0:02:02]} (8... e6 $11) 9. dxc3 $14 {[%emt 0:00:39]} Qc7 {[%emt 0:00:22]} 10. a4 {[%emt 0:00:11]} Be6 {[%emt 0:00:36]} 11. Qa3 {[%emt 0:00:01] Weiß hat minimalen Vorteil.} Bd5 {[%emt 0:00:45]} 12. Rd1 {[%emt 0:00:43]} e6 {[%emt 0:01:57]} 13. Bf4 {[%emt 0:00:03]} Qb6 {[%emt 0:00:36]} 14. Be3 {[%emt 0:00:51]} (14. Nd2 $16) 14... Rc8 {[%emt 0:00:40]} 15. b4 {[%emt 0:00:52]} cxb4 {[%emt 0:00:51]} 16. cxb4 {[%emt 0:00:03]} Qa6 {[%emt 0:00:02]} (16... Qd8 $1 $11 {und Schwarz steht sicher.}) 17. Rac1 {[%emt 0:00:26]} ({Vorzuziehen ist} 17. b5 $18 Qa5 18. Ng5) 17... Nd7 {[%emt 0:00:12]} 18. b5 $36 {[%emt 0:01:56][%mdl 2048] Weiss drückt.} Qa5 $1 {[%emt 0:00:12]} 19. Bd2 {[%emt 0:00:10]} ({Günstiger ist} 19. Ng5 $14 Nf6 20. Bd4) 19... Qb6 {[%emt 0:00:25]} (19... Rxc1 $11 20. Rxc1 Qd8) 20. Qe7 {[%emt 0:00:24]} (20. Ng5 $16) 20... Nf6 {[%emt 0:01:04]} (20... Rxc1 $11 {und Schwarz muss sich keine Sorgen machen.} 21. Rxc1 (21. Bxc1 Qd8 $11) 21... Qd8 22. Qxd8+ Rxd8) 21. Ng5 $2 {[%emt 0:00:50]} (21. Ne5 $18 Rf8 22. Bg5) 21... Rf8 {[%emt 0:00:33]} 22. Qb4 {[%emt 0:01:43] Tanz auf der Rasierklinge.} (22. Bc3 {hält die Spannung aufrecht.} Ng4 23. Nh3 Bxc3 24. Rxc3 Qa5 25. Rdc1) 22... Bxg2 {[%emt 0:00:23][%mdl 8192]} (22... a5 $16 23. Qf4 Nh5) 23. Kxg2 $2 {[%emt 0:00:01]} (23. Be3 $1 $18 {[%cal Re3b6] ist der präzise Gewinnweg.} Qxe3 24. fxe3) 23... Nd5 {[%emt 0:00:01]} 24. Qh4 {[%emt 0:00:16][%csl Gg5][%cal Rh4h7] [#]} h6 {[%emt 0:00:29]} 25. Nf3 {[%emt 0:00:02][%cal Oe2e4] Und jetzt e4! wäre schön.} g5 $1 {[%emt 0:00:17]} 26. Qc4 {[%emt 0:01:34] e4 wäre nun fies.} f5 {[%emt 0:01:32]} (26... Rfc8 $11 {bleibt in der Remisbreite.} 27. Qxc8+ Rxc8 28. Rxc8+ Kh7) 27. a5 {[%emt 0:01:52]} (27. Bb4 {mit weiteren Verwicklungen.} Rac8 28. Bc5 Qc7 29. e4) 27... Qd8 {[%emt 0:00:05]} 28. e4 {[%emt 0:00:13]} fxe4 {[%emt 0:00:27]} 29. Qxe4 {[%emt 0:00:02]} Qf6 {[%emt 0:00:04]} 30. Re1 {[%emt 0:00:25][%cal Bd1e1,Be1e2,Be2e4][%mdl 32]} Rae8 {[%emt 0:00:06]} 31. Re2 {[%emt 0:00:03] Aktives Gegenspiel!} Qf5 {[%emt 0:00:06]} 32. Rce1 {[%emt 0:00:07]} Qxe4 {[%emt 0:01:36]} (32... Nc3 {scheint wilder zu sein.} 33. Qxf5 Rxf5 34. Rxe6 Ref8) 33. Rxe4 {[%emt 0:00:02]} Rf7 {[%emt 0:00:10] [#] ...Ref8 ist eine echte Drohung.} 34. Ne5 {[%emt 0:00:17]} Bxe5 {[%emt 0:00:12]} (34... Rc7 $14) 35. Rxe5 $16 {[%emt 0:00:01]} Ref8 {[%emt 0:01:19]} (35... Rd7 $142) 36. R1e2 {[%emt 0:00:02]} (36. Rxe6 $2 {zu gefräßig.} Rxf2+ 37. Kg1 Rxd2 $19) 36... Nc7 {[%emt 0:00:01]} 37. Be3 {[%emt 0:00:06]} a6 {[%emt 0:00:18]} (37... Ra8 $16 38. Rd2 a6) 38. bxa6 $18 {[%emt 0:00:06]} Nxa6 {[%emt 0:00:00]} 39. Rxe6 {[%emt 0:00:03]} Kh7 {[%emt 0:00:00]} 40. Bb6 {[%emt 0:00:04]} (40. Rb2 $142 Rf6 41. Rxb7+ Kg6 42. Rbb6) 40... Nb4 $2 {[%emt 0:00:00]} (40... Nc7) 41. Rd6 {[%emt 0:00:15]} Nc6 {[%emt 0:00:04]} (41... Rf6 $142 42. Rxf6 Rxf6 43. Re7+ Kg8 44. Rxb7 Re6) 42. Ree6 {[%emt 0:00:02] Gewichteter Fehlerwert: Weiß=0.57/Schwarz=0.55.  Verlustzug:     	---       	Schwarz=2     Gewinn verpasst:   	Weiß=2     	---        Fehler:       	Weiß=5     	Schwarz=8     Ungenau:       	Weiß=4     	Schwarz=3     OK:         	Weiß=10    	Schwarz=6     Bester:       	Weiß=1     	Schwarz=1     Stark:        	---       	Schwarz=2} 1-0

[Event "Grand Prix Romania 1st Stage 2024"]
[Site "Bucuresti"]
[Date "2024.03.24"]
[Round "5.31"]
[White "Lehaci, Miruna-Daria"]
[Black "Stepanencu, Nicodim-Cosmin"]
[Result "1-0"]
[ECO "A46"]
[WhiteElo "2247"]
[BlackElo "2278"]
[Annotator "RC"]
[PlyCount "134"]
[EventDate "2024.03.20"]
[EventType "swiss"]
[EventCountry "ROU"]
[SourceTitle "playchess.com"]
[Source "ChessBase"]
[SourceQuality "1"]
[TimeControl "900+5"]

1. d4 {[%emt 0:00:02]} Nf6 {[%emt 0:00:02]} 2. Bf4 {[%emt 0:00:05]} e6 {[%emt 0:00:17]} 3. e3 {[%emt 0:00:09]} c5 {[%emt 0:00:05]} 4. Nf3 {[%emt 0:00:07]} cxd4 {[%emt 0:00:04]} 5. exd4 {[%emt 0:00:05]} b6 {[%emt 0:00:02]} 6. Bd3 {[%emt 0:00:55]} Be7 {[%emt 0:00:48]} 7. Nc3 {[%emt 0:00:45]} Bb7 {[%emt 0:00:59]} 8. a3 {[%emt 0:01:45]} h6 {[%emt 0:01:06]} 9. Qe2 {[%emt 0:00:43]} a6 {[%emt 0:00:29]} 10. h3 {[%emt 0:01:45]} b5 {[%emt 0:00:08]} 11. O-O {[%emt 0:00:40]} O-O {[%emt 0:00:54]} 12. Rfe1 {[%emt 0:00:13]} d6 {[%emt 0:00:49]} 13. Bg3 {[%emt 0:00:54]} Nbd7 {[%emt 0:00:42]} 14. Nd1 {[%emt 0:02:28]} Qb6 {[%emt 0:01:55]} 15. c3 {[%emt 0:00:07]} Rfe8 {[%emt 0:00:02]} 16. Bc2 {[%emt 0:00:19]} a5 {[%emt 0:00:16]} 17. Nd2 {[%emt 0:02:18]} b4 {[%emt 0:01:24]} 18. axb4 {[%emt 0:00:32]} axb4 {[%emt 0:00:02]} 19. Rxa8 {[%emt 0:00:02]} Rxa8 {[%emt 0:00:09]} 20. Ne3 {[%emt 0:00:44]} bxc3 {[%emt 0:00:40]} 21. bxc3 {[%emt 0:00:03]} Qc7 {[%emt 0:00:24]} 22. c4 {[%emt 0:00:18]} Bf8 {[%emt 0:01:24]} 23. Qd3 {[%emt 0:00:29]} Qa5 {[%emt 0:00:59]} 24. Rb1 {[%emt 0:00:12]} Ba6 {[%emt 0:00:24]} 25. Nb3 {[%emt 0:00:44]} Qd8 {[%emt 0:00:34]} 26. Qd2 {[%emt 0:00:18]} Bb7 {[%emt 0:00:25]} 27. f3 {[%emt 0:00:16]} Be7 {[%emt 0:01:35]} 28. Be1 {[%emt 0:00:02]} Rb8 {[%emt 0:00:19]} 29. Na5 {[%emt 0:00:04]} Ba8 {[%emt 0:00:01]} 30. Rxb8 {[%emt 0:00:18]} Qxb8 {[%emt 0:00:01]} 31. Qd3 {[%emt 0:00:07]} Bd8 {[%emt 0:00:09]} 32. Nb3 {[%emt 0:00:02]} Bb6 {[%emt 0:00:10]} 33. Ng4 {[%emt 0:00:02]} Kf8 {[%emt 0:00:16]} 34. Bf2 {[%emt 0:00:02]} Bb7 {[%emt 0:00:12]} 35. Qd2 {[%emt 0:00:06]} Ba6 {[%emt 0:00:01]} 36. c5 {[%emt 0:00:10]} Bc7 {[%emt 0:00:07]} 37. c6 {[%emt 0:00:01]} Nxg4 {[%emt 0:00:06]} 38. hxg4 {[%emt 0:00:04]} Nf6 {[%emt 0:00:08]} 39. g5 {[%emt 0:00:03]} hxg5 {[%emt 0:00:02]} 40. Qxg5 {[%emt 0:00:02]} Qb5 {[%emt 0:00:02]} 41. Qxb5 {[%emt 0:00:21]} Bxb5 {[%emt 0:00:01]} 42. d5 {[%emt 0:00:06]} Nxd5 {[%emt 0:00:13]} 43. Nd4 {[%emt 0:00:02]} Ba6 {[%emt 0:00:01]} 44. Ba4 {[%emt 0:00:06]} Nc3 {[%emt 0:00:07]} 45. Bb3 {[%emt 0:00:03]} Nb5 {[%emt 0:00:08]} 46. Bc4 {[%emt 0:00:07]} Nxd4 {[%emt 0:00:02]} 47. Bxa6 {[%emt 0:00:00]} Nxc6 {[%emt 0:00:01]} 48. Bb7 {[%emt 0:00:06]} Na5 {[%emt 0:00:04]} 49. Be4 {[%emt 0:00:03]} d5 {[%emt 0:00:02]} 50. Bc5+ {[%emt 0:00:02]} Ke8 {[%emt 0:00:01]} 51. Bd3 {[%emt 0:00:02]} Nc4 {[%emt 0:00:07]} 52. Kf1 {[%emt 0:00:06]} Kd7 {[%emt 0:00:04]} 53. Ke2 {[%emt 0:00:03]} Bd6 {[%emt 0:00:02]} 54. Bf2 {[%emt 0:00:04]} Kc6 {[%emt 0:00:03]} 55. g4 {[%emt 0:00:11]} Bf4 {[%emt 0:00:01]} 56. Be1 {[%emt 0:00:06]} Kc5 {[%emt 0:00:09]} 57. Bh4 {[%emt 0:00:13]} f6 {[%emt 0:00:11]} 58. Bf2+ {[%emt 0:00:03]} Kc6 {[%emt 0:00:01]} 59. Be1 {[%emt 0:00:03]} Bc7 {[%emt 0:00:19]} 60. Bb4 {[%emt 0:00:03]} Bd6 {[%emt 0:00:01]} 61. Be1 {[%emt 0:00:02]} Kb5 {[%emt 0:00:02]} 62. Bd2 {[%emt 0:00:08]} Bb4 {[%emt 0:00:04]} 63. Bc1 {[%emt 0:00:02]} Kc5 {[%emt 0:00:02]} 64. g5 {[%emt 0:00:07]} Kd4 {[%emt 0:00:20]} 65. g6 {[%emt 0:00:05]} Bc3 {[%emt 0:00:05]} 66. Bh6 {[%emt 0:00:05]} Ne5 {[%emt 0:00:12]} 67. Bxg7 {[%emt 0:00:08]} Nxg6 {[%emt 0:00:05]} 1-0

[Event "Grand Prix Romania 1st Stage 2024"]
[Site "Bucuresti"]
[Date "2024.03.24"]
[Round "5.32"]
[White "Ignat, Matei-Marius"]
[Black "Efroimski, Marsel"]
[Result "0-1"]
[ECO "B12"]
[WhiteElo "2072"]
[BlackElo "2467"]
[Annotator "TA"]
[PlyCount "54"]
[EventDate "2024.03.20"]
[EventType "swiss"]
[EventCountry "ROU"]
[SourceTitle "playchess.com"]
[Source "ChessBase"]
[SourceQuality "1"]
[TimeControl "900+5"]

{[%evp 9,54,0,21,17,46,31,72,43,81,44,27,31,25,46,48,3,7,11,13,14,20,24,24,0,0,0,0,-47,0,-58,0,-72,-74,-73,-64,-67,-8,-9,-4,-23,-7,-50,-28,-65,-60,-604,-627]} 1. e4 {[%emt 0:00:01]} c6 {[%emt 0:00:01]} 2. d4 {[%emt 0:00:03]} d5 {[%emt 0:00:01]} 3. e5 {[%emt 0:00:01]} c5 {[%emt 0:00:01]} 4. c4 {[%emt 0:00:03]} cxd4 {[%emt 0:01:39]} 5. Nf3 {[%emt 0:00:02]} Nc6 {[%emt 0:00:06]} 6. Nxd4 {[%emt 0:00:22]} Nxe5 {[%emt 0:00:12]} (6... dxc4 {simplifies} 7. Nxc6 Qxd1+ 8. Kxd1 bxc6 9. Bxc4 e6) 7. cxd5 {[%emt 0:00:47] Strongly threatening Bf4.} a6 {[%emt 0:01:05][%cal Og8f6]} 8. Nc3 {[%emt 0:00:49] White is better.} Nf6 {[%emt 0:00:02]} 9. Qa4+ {[%emt 0:01:35]} Bd7 {[%emt 0:01:14]} 10. Qb3 {[%emt 0:00:01]} b5 {[%emt 0:00:02]} 11. Be2 {[%emt 0:00:57]} Qb6 {[%emt 0:00:23]} 12. Nf3 {[%emt 0:00:21]} Nxf3+ {[%emt 0:02:04]} 13. Bxf3 {[%emt 0:00:01]} e5 {[%emt 0:00:12]} 14. O-O {[%emt 0:03:11]} Bc5 {[%emt 0:00:38]} 15. Bg5 {[%emt 0:00:36]} O-O {[%emt 0:00:02]} 16. Bxf6 {[%emt 0:00:52]} gxf6 {[%emt 0:00:27]} 17. d6 {[%emt 0:01:36]} Rad8 {[%emt 0:00:12][%cal Of6f5]} 18. Rad1 {[%emt 0:00:53]} (18. Ne4 $11 {feels stronger.} Bd4 19. Qc2 (19. Nxf6+ Kg7 $11)) 18... Bd4 {[%emt 0:00:26]} (18... Bxd6 $2 19. Nd5 Qb8 20. Be4 $18 (20. Nxf6+ Kg7 $18)) (18... f5 $1 $15) 19. Ne4 {[%emt 0:00:55]} (19. Nd5 $11 Qxd6 20. Be4) 19... f5 {[%emt 0:00:27]} ({Black should play} 19... Be6 $1 $15 20. Nxf6+ Kg7 21. Nh5+ Kh8) 20. Nf6+ {[%emt 0:00:42]} (20. Rxd4 $1 $11 {remains equal.} Qxd4 21. Rd1) 20... Kg7 $17 {[%emt 0:00:11]} 21. Nxd7 {[%emt 0:00:11]} Rxd7 {[%emt 0:00:02]} 22. Qd3 {[%emt 0:00:01]} Rxd6 {[%emt 0:01:27]} (22... f4 $1 $15 23. Qf5 Rxd6 (23... Qxd6 24. Be4 $11)) 23. Qxf5 $11 {[%emt 0:00:05]} Rf6 $36 {[%emt 0:00:33][%mdl 2048] Black has the initiative.} 24. Qg5+ {[%emt 0:00:51]} Rg6 {[%emt 0:00:02]} 25. Qh5 {[%emt 0:00:07]} f5 {[%emt 0:00:18][%cal Ob6d8]} ({Much worse is} 25... Bxb2 26. Be4 $11) 26. g3 {[%emt 0:01:16]} Qf6 {[%emt 0:01:41][%cal Og6h6] [#] aiming for ...Rh6!} 27. Kh1 $2 {[%emt 0:00:16][%mdl 8192]} (27. Bb7 $15) 27... Rh6 $1 {[%emt 0:00:03] Weighted Error Value: White=0.47/Black=0.16 (very precise) .  Loses game:     	White=1     	---        Mistake:       	White=3     	Black=3      Inaccurate:     	White=5     	Black=3      OK:         	White=7     	Black=7      Best:        	White=1     	Black=3      Strong:       	---       	Black=1} ({Not} 27... Bxb2 28. Bg2 $17) 0-1

[Event "Grand Prix Romania 1st Stage 2024"]
[Site "Bucuresti"]
[Date "2024.03.24"]
[Round "5.33"]
[White "Ben Ari, Yannay"]
[Black "Saioc, David"]
[Result "1-0"]
[ECO "A10"]
[WhiteElo "2434"]
[BlackElo "2023"]
[Annotator "TA"]
[PlyCount "73"]
[EventDate "2024.03.20"]
[EventType "swiss"]
[EventCountry "ROU"]
[SourceTitle "playchess.com"]
[Source "ChessBase"]
[SourceQuality "1"]
[TimeControl "900+5"]

{[%evp 9,72,57,75,54,66,53,67,53,80,80,86,86,85,78,92,87,169,108,109,101,114,119,171,173,195,131,154,152,205,167,167,171,168,164,166,165,168,89,207,56,346,344,362,362,889,864,1427,1403,1399,1385,1280,1221,29989,1504,1441,1436,2516,2572,2496,2229,1603,2215,2095,2066,29999]} 1. c4 {[%emt 0:00:01]} b6 {[%emt 0:00:04]} 2. Nc3 {[%emt 0:00:30]} Bb7 {[%emt 0:00:07]} 3. e4 {[%emt 0:00:02]} d6 {[%emt 0:00:04]} 4. d4 {[%emt 0:00:08]} Nf6 {[%emt 0:00:02]} 5. Bd3 {[%emt 0:00:17]} g6 {[%emt 0:00:04]} 6. Be3 {[%emt 0:00:24]} Bg7 {[%emt 0:00:04]} 7. f3 {[%emt 0:00:01]} Nbd7 {[%emt 0:00:06]} 8. Nge2 {[%emt 0:00:17] White is slightly better.} e5 {[%emt 0:02:24]} 9. d5 {[%emt 0:00:05]} a5 {[%emt 0:02:17]} 10. Qd2 {[%emt 0:01:01] White is more active.} Nc5 {[%emt 0:02:52]} 11. Bc2 {[%emt 0:00:02]} O-O {[%emt 0:00:19]} 12. g4 {[%emt 0:00:39]} Bc8 {[%emt 0:01:19] [#]} (12... h5 $16) 13. h3 {[%emt 0:00:45]} (13. Ng3 $1 $18) 13... Ba6 $16 {[%emt 0:01:47]} 14. b3 {[%emt 0:00:07]} Qd7 {[%emt 0:00:36]} 15. Ng3 {[%emt 0:00:20]} Rab8 {[%emt 0:02:02]} (15... b5 $16) 16. a4 $18 {[%emt 0:00:50]} Rbe8 {[%emt 0:00:23]} 17. Kf2 {[%emt 0:01:07]} (17. O-O-O $18) 17... Bc8 {[%emt 0:00:33]} 18. Rag1 {[%emt 0:00:06]} c6 {[%emt 0:00:32]} (18... Qe7 $16 {might work better.} 19. Bg5 Rd8) 19. g5 {[%emt 0:02:26]} Nh5 {[%emt 0:00:02]} 20. Nxh5 {[%emt 0:00:02]} gxh5 {[%emt 0:00:01]} 21. dxc6 {[%emt 0:00:07]} Qxc6 {[%emt 0:00:01]} 22. Nd5 $36 {[%emt 0:00:01][%mdl 2048] White has strong initiative.} Kh8 {[%emt 0:00:29]} 23. h4 {[%emt 0:01:54]} (23. Ke2 $18) 23... Re6 {[%emt 0:00:14] [#]} (23... Be6 $16 24. Rg3 Bxd5 25. cxd5 Qc7) 24. Nf6 $2 {[%emt 0:00:25]} Nd7 {[%emt 0:00:36][%mdl 8192] Black cannot hold the game after this.} ({Black should try} 24... Bxf6 $14 25. gxf6 Rxf6) 25. Nxh5 {[%emt 0:00:07][%cal Bf6h5,Bh5g3,Bg3f5][%mdl 32]} Bb7 {[%emt 0:00:04]} 26. Ng3 {[%emt 0:00:18]} ({Don't play} 26. Nxg7 Kxg7 27. Ke1 Nc5 $18) 26... f6 $2 {[%emt 0:00:06]} (26... Rg8 27. h5 Nc5) 27. Nf5 {[%emt 0:00:05] And now g6 would win.} Rf7 {[%emt 0:00:03]} 28. g6 {[%emt 0:00:06]} hxg6 {[%emt 0:00:03]} 29. Rxg6 {[%emt 0:00:02] Hoping for Bh6.} Nf8 {[%emt 0:00:02]} 30. Rg4 {[%emt 0:00:15] White wants to mate with Bh6.} Bc8 {[%emt 0:00:06]} 31. Rhg1 {[%emt 0:00:06]} (31. Bh6 $142 Ng6 32. Rxg6 Kg8 33. Bxg7 (33. Rxg7+ Rxg7 34. Bxg7 Kf7 $18) 33... Rfe7 34. Nxe7+ Rxe7 35. Bxf6+ Kf8 36. Qh6+ (36. Bxe7+ Ke8 37. Bxd6 Bh3 38. Rxh3 Kd7 39. Bxe5+ Ke7 40. Rxc6 Ke8 41. Re6+ Kf8 42. Qd8+ Kf7 43. Qe8#) 36... Ke8 37. Bxe7) 31... Ree7 {[%emt 0:00:02]} 32. Bh6 {[%emt 0:01:41][%cal Rh6g7]} Bxf5 {[%emt 0:00:11]} 33. Bxg7+ {[%emt 0:00:06]} Rxg7 {[%emt 0:00:01]} 34. Qh6+ {[%emt 0:00:13]} Bh7 {[%emt 0:00:09]} 35. Rxg7 {[%emt 0:00:02][%csl Gg1][%cal Rg7g8]} Qc5+ {[%emt 0:00:01]} 36. Ke2 {[%emt 0:00:02][%csl Gg1][%cal Rg7g8]} Ng6 {[%emt 0:00:10]} 37. Qxh7# {[%emt 0:00:02] Weighted Error Value: White=0.25 (precise) /Black=0.85.  Loses game:     	---       	Black=1      Mistake:       	White=4     	Black=5      Inaccurate:     	---       	Black=2      OK:         	White=11    	Black=3      Best:        	White=1     	Black=2} 1-0

[Event "Grand Prix Romania 1st Stage 2024"]
[Site "Bucuresti"]
[Date "2024.03.24"]
[Round "5.34"]
[White "Sofronie, Vladimir"]
[Black "Soltanici, Ruslan"]
[Result "0-1"]
[ECO "D00"]
[WhiteElo "1990"]
[BlackElo "2339"]
[Annotator "RC"]
[PlyCount "76"]
[EventDate "2024.03.20"]
[EventType "swiss"]
[EventCountry "ROU"]
[SourceTitle "playchess.com"]
[Source "ChessBase"]
[SourceQuality "1"]
[TimeControl "900+5"]

1. d4 {[%emt 0:00:02]} Nf6 {[%emt 0:00:02]} 2. Bf4 {[%emt 0:00:02]} d5 {[%emt 0:00:24]} 3. e3 {[%emt 0:00:01]} c5 {[%emt 0:00:10]} 4. c3 {[%emt 0:00:05]} Nc6 {[%emt 0:00:19]} 5. Nd2 {[%emt 0:00:11]} Bf5 {[%emt 0:00:07]} 6. Ngf3 {[%emt 0:00:09]} Qb6 {[%emt 0:01:29]} 7. Nh4 {[%emt 0:00:07]} Bg4 {[%emt 0:00:39]} 8. Qb3 {[%emt 0:00:47]} c4 {[%emt 0:00:11]} 9. Qc2 {[%emt 0:00:17]} h6 {[%emt 0:00:25]} 10. h3 {[%emt 0:01:11]} Bd7 {[%emt 0:00:34]} 11. Nhf3 {[%emt 0:00:27]} g6 {[%emt 0:01:03]} 12. e4 {[%emt 0:01:06]} e6 {[%emt 0:01:08]} 13. e5 {[%emt 0:00:46]} Nh7 {[%emt 0:00:01]} 14. Be2 {[%emt 0:00:28]} Qa5 {[%emt 0:00:21]} 15. O-O {[%emt 0:00:41]} g5 {[%emt 0:00:16]} 16. Be3 {[%emt 0:00:23]} Be7 {[%emt 0:00:03]} 17. Nh2 {[%emt 0:00:13]} O-O-O {[%emt 0:02:21]} 18. b3 {[%emt 0:00:28]} cxb3 {[%emt 0:00:05]} 19. axb3 {[%emt 0:00:10]} Qc7 {[%emt 0:00:02]} 20. Bd3 {[%emt 0:00:39]} f5 {[%emt 0:00:03]} 21. exf6 {[%emt 0:00:27]} Nxf6 {[%emt 0:00:01]} 22. b4 {[%emt 0:00:45]} Bd6 {[%emt 0:00:24]} 23. Nhf3 {[%emt 0:00:57]} g4 {[%emt 0:00:02]} 24. hxg4 {[%emt 0:00:04]} Nxg4 {[%emt 0:00:01]} 25. Nb3 {[%emt 0:00:52]} Rdf8 {[%emt 0:01:04]} 26. Qe2 {[%emt 0:01:02]} Rhg8 {[%emt 0:00:23]} 27. b5 {[%emt 0:00:32]} Nb8 {[%emt 0:01:47]} 28. Rxa7 {[%emt 0:01:08]} Bc5 {[%emt 0:03:15]} 29. Ne5 {[%emt 0:02:18]} Nxe5 {[%emt 0:00:26]} 30. dxe5 {[%emt 0:00:01]} Bxa7 {[%emt 0:00:04]} 31. Bxa7 {[%emt 0:00:03]} b6 {[%emt 0:00:17]} 32. Ra1 {[%emt 0:00:02]} Kb7 {[%emt 0:00:01]} 33. c4 {[%emt 0:00:11]} Rg5 {[%emt 0:00:12]} 34. c5 {[%emt 0:00:37]} Qxe5 {[%emt 0:00:07]} 35. Qa2 {[%emt 0:00:16]} Rfg8 {[%emt 0:00:05]} 36. g3 {[%emt 0:00:04]} Rxg3+ {[%emt 0:00:03]} 37. fxg3 {[%emt 0:00:06]} Qxg3+ {[%emt 0:00:01]} 38. Kh1 {[%emt 0:00:02]} Qh3+ {[%emt 0:00:02]} 0-1